Cogmind - Beta 15 @@@ ROGUE MODE // 2025.09.21 @ 18:01:00 Player: glorp Result: Destroyed by S-27 Virus with Autogun Performance ------------- Evolutions (3) 1500 Regions Visited (7) 1400 Robots Destroyed (34) 170 Value Destroyed (1108) 1108 Prototype IDs (1) 20 Alien Tech Used (0) 0 Bonus (317) 317 TOTAL SCORE: 4515 Bonus ------- Follower Combat Kills 134 Entered Garrisons 200 Friendly Fire -17 Cogmind --------- Core Integrity 0/700 Matter 291/300 Energy 100/100 System Corruption 0% Temperature Cool (0) Movement Core (50) Location -7/Garrison Parts ------- > --- POWER (1) -------- (None) > --- PROPULSION (5) --- (None) > --- UTILITY (5) ------ (None) > --- WEAPON (2) ------- (None) > --- INVENTORY (5) ---- Light Ion Engine Light Deuterium Engine Light Nuclear Core Large Storage Unit Mining Laser Peak State ------------ > --- POWER ------------ Nuclear Core > --- PROPULSION ------- Aluminum Leg Aluminum Leg Aluminum Leg Carbon-fiber Leg Carbon-fiber Leg > --- UTILITY ---------- Improved Heat Sink Small Storage Unit Large Storage Unit Improved Terrain Scan Processor Improved Shield Generator > --- WEAPON ----------- Field Laser Heavy Laser > --- INVENTORY -------- Light Ion Engine Light Deuterium Engine Light Nuclear Core Light Angular Momentum Engine Aluminum Leg Improved Heat Sink Improved Heat Sink Small Battery Pulse Rifle Beam Cannon Light Assault Rifle Light Assault Rifle Mining Laser [Rating: 33] Favorites ----------- Power Ion Engine Engine Ion Engine Power Core Light Nuclear Core Propulsion Aluminum Leg Leg Aluminum Leg Wheel Wheel Flight Unit Surge Thruster Utility Small Storage Unit Device Improved Heat Sink Storage Small Storage Unit Processor Improved Terrain Scan Processor Weapon Beam Cannon Energy Gun Pulse Rifle Energy Cannon Beam Cannon Ballistic Gun Light Assault Rifle Slashing Weapon Blade Saw Build | -11 -10 -10 -10 -9 -8 -7 -7 ------- Run | Yrd Mat Min Exi Min Mat Fac Gar Slots Evolved 6 | . . . . . 4 2 . Power . | . . . . . . . . Propulsion 3 | . . . . . 2 1 . Utility 3 | . . . . . 2 1 . Weapon . | . . . . . . . . Parts Attached 43 | 7 4 . . 2 17 3 10 Power 5 | 1 . . . . 2 1 1 Engine 3 | 1 . . . . 1 . 1 Core 2 | . . . . . 1 1 . Reactor . | . . . . . . . . Propulsion 18 | 4 . . . 2 6 . 6 Treads . | . . . . . . . . Leg 11 | 2 . . . 2 6 . 1 Wheel 2 | 2 . . . . . . . Hover . | . . . . . . . . Flight 5 | . . . . . . . 5 Utility 9 | . 2 . . . 6 1 . Device 4 | . . . . . 3 1 . Storage 3 | . 2 . . . 1 . . Processor 2 | . . . . . 2 . . Hackware . | . . . . . . . . Protection . | . . . . . . . . Artifact . | . . . . . . . . Weapon 11 | 2 2 . . . 3 1 3 Energy Gun 5 | 1 . . . . 3 1 . Energy Cannon 2 | . 2 . . . . . . Ballistic Gun 2 | 1 . . . . . . 1 Ballistic Cannon . | . . . . . . . . Launcher . | . . . . . . . . Special Weapon . | . . . . . . . . Impact Weapon . | . . . . . . . . Slashing Weapon 2 | . . . . . . . 2 Piercing Weapon . | . . . . . . . . Special Melee Weapon . | . . . . . . . . Unidentified Prototypes 1 | . . . . . 1 . . Parts Lost 13 | . . . . . 2 . 11 Power 1 | . . . . . . . 1 Propulsion 10 | . . . . . 2 . 8 Utility 1 | . . . . . . . 1 Weapon 1 | . . . . . . . 1 Highest Loss Streak 8 | . . . . . 1 . 8 To Critical Strikes . | . . . . . . . . Average Backups 9 | 2 6 6 6 6 10 15 9 Power 2 | . 1 1 1 1 2 4 3 Propulsion . | . . . . . . 2 1 Utility 2 | . 2 1 1 1 2 4 2 Weapon 3 | . 3 4 4 4 4 5 2 Tool/Special . | . . . . . . . . Unused Backups 6 | . 1 . . . . . 5 Power 1 | . . . . . . . 1 Propulsion . | . . . . . . . . Utility 3 | . 1 . . . . . 2 Weapon 2 | . . . . . . . 2 Tool/Special . | . . . . . . . . Average Slot Usage (%) 82 | . 86 85 85 85 94 84 54 Engine 7 | . 14 14 14 14 5 4 3 Core 1 | . . . . . 3 2 1 Leg 27 | . 28 28 28 28 35 30 10 Flight 1 | . . . . . . . 10 Device 5 | . . . . . 5 15 5 Storage 10 | . 15 14 14 14 9 7 9 Processor 7 | . . . . . 16 7 3 Energy Gun 9 | . 4 . . . 16 15 3 Energy Cannon 8 | . 18 28 28 28 1 . 1 Ballistic Gun 1 | . 4 . . . . . 1 Peak Build Rating 33 | 5 7 6 7 6 30 31 33 Average Rating 17 | 4 6 6 6 6 25 30 18 On Entrance 11 | . 5 6 6 6 6 30 31 Naked Turns 49 | . . . . . . . 49 Heaviest Build 44 | 8 19 16 16 16 38 39 44 Greatest Support 60 | 20 20 20 20 20 50 50 60 Greatest Overweight (x) 12 | . . . . . 1 . 12 Average Overweight (x) . | . . . . . . . . Largest Inventory Capacity 15 | 5 8 8 8 8 15 15 15 Average Capacity 10 | 5 7 8 8 8 12 15 11 Most Carried 15 | 5 8 6 7 8 15 15 15 Average Carried 9 | 2 6 6 6 6 10 15 9 Final Capacity 15 | 5 8 8 8 8 15 15 5 Final Carried 15 | 3 6 6 6 8 15 15 5 Class Distribution -------------------- 57% | Mutant 36% | Scavenger-Mutant 5% | Scavenger-Sprinter Dominant Class ---------------- Mutant | -10/Materials Mutant | -10/Mines Mutant | -10/Exiles Mutant | -9/Mines Scavenger-Mutant | -8/Materials Scavenger-Mutant | -7/Factory Mutant | -7/Garrison Resources | -11 -10 -10 -10 -9 -8 -7 -7 ----------- Run | Yrd Mat Min Exi Min Mat Fac Gar Matter Collected 790 | 245 90 . . . 247 30 178 Remotely . | . . . . . . . . Salvage Created 1232 | . 91 . . 92 786 85 178 Parts 66 | . 8 . . 6 33 3 16 Haulers Intercepted . | . . . . . . . . Recyclers Shooed . | . . . . . . . . Parts Field Recycled . | . . . . . . . . Retrieved Matter . | . . . . . . . . Parts Self-Destructed . | . . . . . . . . Prevented . | . . . . . . . . Kills | -11 -10 -10 -10 -9 -8 -7 -7 ------- Run | Yrd Mat Min Exi Min Mat Fac Gar Combat Hostiles Destroyed 29 | . 3 . . 2 14 2 8 Melee 1 | . . . . . . . 1 Guns 21 | . . . . . 14 2 5 Cannons 7 | . 3 . . 2 . . 2 Classes Destroyed 9 | . 2 . . 2 4 . 1 Worker 2 | . . . . . 2 . . Recycler 1 | . . . . . 1 . . Watcher 2 | . 2 . . . . . . Swarmer 8 | . 3 . . . . . 5 Cutter 3 | . . . . . . . 3 Grunt 14 | . . . . 1 11 2 . Brawler 1 | . . . . 1 . . . Sentry 2 | . . . . . 2 . . Hunter 1 | . . . . . 1 . . Best Kill Streak 4 | . 3 . . 2 3 2 4 Combat Bots Only 4 | . 3 . . 2 3 2 4 Max Kills in Single Turn 2 | . 1 . . 1 2 1 1 Gunslinging . | . . . . . . . . Exploded . | . . . . . . . . Melee 1 | . . . . . . . 1 Uniques/NPCs Destroyed . | . . . . . . . . Combat | -11 -10 -10 -10 -9 -8 -7 -7 -------- Run | Yrd Mat Min Exi Min Mat Fac Gar Hostile Shots Fired 257 | . 19 . . 10 64 4 160 Missed 78 | . 3 . . 6 17 1 51 Hits 179 | . 16 . . 4 47 3 109 Melee 16 | . . . . 1 . . 15 Projectile 163 | . 16 . . 3 47 3 94 AOE 2 | . . . . . . . 2 Critical Strikes 9 | . 1 . . . 2 . 6 Damage Taken 2682 | . 129 . . 53 754 33 1713 Core 977 | . 18 . . 23 230 . 706 Absorbed by Shields 72 | . . . . . . 13 59 Core Remaining (%) 80 | 100 . . . 83 58 . . Volleys Fired 86 | . 7 . . 5 44 6 24 Largest 2 | . 2 . . 2 2 2 2 Hottest 132 | . 120 . . 120 132 132 132 Shots Fired 161 | . 14 . . 10 86 12 39 Gun 129 | . 4 . . . 86 12 27 Cannon 32 | . 10 . . 10 . . 12 Launcher . | . . . . . . . . Special . | . . . . . . . . Kinetic 14 | . 2 . . . . . 12 Thermal 147 | . 12 . . 10 86 12 27 Explosive . | . . . . . . . . Electromagnetic . | . . . . . . . . Robot Hit Streak 17 | . 4 . . 5 17 8 3 Robot Miss Streak 3 | . 1 . . 1 3 1 3 Penetration Max . | . . . . . . . . Secondary Targets . | . . . . . . . . Shots Hit Robots 104 | . 8 . . 5 60 8 23 Core Hits 59 | . 5 . . 3 33 4 14 Critical Kills . | . . . . . . . . Critical Parts Destroyed . | . . . . . . . . Critical Strikes 4 | . . . . . 2 . 2 Burn 2 | . . . . . 2 . . Sever 2 | . . . . . . . 2 Melee Attacks 6 | . . . . . . . 6 Impact . | . . . . . . . . Slashing 6 | . . . . . . . 6 Piercing . | . . . . . . . . Sneak Attacks 1 | . . . . . . . 1 Combat Hostiles . | . . . . . . . . Follow-up Attacks . | . . . . . . . . Damage Inflicted 1952 | . 129 . . 142 1141 146 394 Guns 1545 | . 24 . . . 1135 146 240 Cannons 336 | . 105 . . 142 . . 89 Explosions . | . . . . . . . . Melee 65 | . . . . . . . 65 Ramming 6 | . . . . . 6 . . Kinetic 54 | . . . . . . . 54 Thermal 1827 | . 129 . . 142 1135 146 275 Explosive . | . . . . . . . . Electromagnetic . | . . . . . . . . Impact . | . . . . . . . . Slashing 65 | . . . . . . . 65 Piercing . | . . . . . . . . Highest Corruption . | . . . . . . . . Average Corruption . | . . . . . . . . Corruption Purged . | . . . . . . . . Corruption Blocked . | . . . . . . . . Overload Shots . | . . . . . . . . Overflow Damage . | . . . . . . . . Projectiles . | . . . . . . . . Explosions . | . . . . . . . . Melee . | . . . . . . . . Knockbacks . | . . . . . . . . Impact . | . . . . . . . . Kinetic . | . . . . . . . . Secondary . | . . . . . . . . Self-Inflicted Damage . | . . . . . . . . Shots . | . . . . . . . . Rammed . | . . . . . . . . Targets Rammed 1 | . . . . . 1 . . Kicked 1 | . . . . . 1 . . Crushed . | . . . . . . . . Highest Temperature 429 | . 206 . . 258 429 21 33 Average Temperature 86 | . 82 . . 112 103 8 9 Received Heat Transfer 432 | . . . . 18 396 18 . Siege Activations . | . . . . . . . . Martial Activations . | . . . . . . . . Shielding Activations . | . . . . . . . . Robots Disrupted . | . . . . . . . . Combat Hostiles . | . . . . . . . . Robots Corrupted . | . . . . . . . . Combat Hostiles . | . . . . . . . . Parts Fried . | . . . . . . . . Impact Corruptions . | . . . . . . . . Robots Melted . | . . . . . . . . Combat Hostiles . | . . . . . . . . Parts Melted 6 | . . . . . 5 1 . Heat Transferred 3885 | . 296 . . 296 2442 296 555 Parts Sabotaged . | . . . . . . . . Parts Stolen . | . . . . . . . . Parts Stripped . | . . . . . . . . Power Chain Reactions . | . . . . . . . . Alert | -11 -10 -10 -10 -9 -8 -7 -7 ------- Run | Yrd Mat Min Exi Min Mat Fac Gar Maximum Alert Level . | . . . . . . . . Low Security (%) 100 | 100 100 100 . 100 100 100 100 Level 1 . | . . . . . . . . Level 2 . | . . . . . . . . Level 3 . | . . . . . . . . Level 4 . | . . . . . . . . Level 5 . | . . . . . . . . High Security . | . . . . . . . . Max Security . | . . . . . . . . Peak Influence 193 | . 76 . . 99 193 111 182 Initial 63 | . . . . . 26 63 2 Average 69 | . 14 . . 31 117 55 96 Influence Increases 995 | . 113 . . 119 481 82 200 Destroy 0b10 Robot/C 660 | . 60 . . 60 340 40 160 Destroy 0b10 Robot/NC 30 | . 10 . . . 20 . . Destroy Leader 126 | . 14 . . 10 82 10 10 Allied During Kill 11 | . . . . 4 7 . . Successful Hack 45 | . 13 . . . . 32 . Disable Machine 30 | . 15 . . 15 . . . Destroy Structure 3 | . 1 . . . 2 . . Lose Combat Pursuer 90 | . . . . 30 30 . 30 Influence Decreases 903 | . 113 . . 50 411 217 112 Entered New Map 121 | . . . . . 43 76 2 Time Decay 632 | . 113 . . 50 328 141 . Lost Part 130 | . . . . . 20 . 110 Lost Ally 20 | . . . . . 20 . . Squads Dispatched 4 | . . 1 . . 1 2 . Investigation 1 | . . . . . . 1 . Extermination 1 | . . . . . . 1 . Reinforcement 1 | . . . . . 1 . . Assault 1 | . . 1 . . . . . Garrison . | . . . . . . . . Intercept . | . . . . . . . . Searches Triggered . | . . . . . . . . Construction Impeded . | . . . . . . . . Haulers Reinforced . | . . . . . . . . Active Scanning Responses . | . . . . . . . . Cargo Convoy Interrupts . | . . . . . . . . Stealth | -11 -10 -10 -10 -9 -8 -7 -7 --------- Run | Yrd Mat Min Exi Min Mat Fac Gar Distress Signals 4 | . . . . . 4 . . Communications Jammed . | . . . . . . . . Distress Signals . | . . . . . . . . Times Spotted 47 | . 7 . . 5 21 3 11 Peak Tracking Total 6 | . 3 . . 3 4 2 6 Tactical Retreats 4 | . . . . 1 1 . 2 Traps | -11 -10 -10 -10 -9 -8 -7 -7 ------- Run | Yrd Mat Min Exi Min Mat Fac Gar Traps Triggered 2 | . . . . . 1 . 1 Indirectly . | . . . . . . . . Trap Hack Attempts . | . . . . . . . . Triggered . | . . . . . . . . Disarmed . | . . . . . . . . Reprogrammed . | . . . . . . . . Reused . | . . . . . . . . Traps Extracted . | . . . . . . . . Installed . | . . . . . . . . Triggered . | . . . . . . . . Machines | -11 -10 -10 -10 -9 -8 -7 -7 ---------- Run | Yrd Mat Min Exi Min Mat Fac Gar Machines Disabled 2 | . 1 . . 1 . . . Max in Single Turn 1 | . 1 . . 1 . . . Machines Repaired . | . . . . . . . . Machines Dismantled . | . . . . . . . . Machines Sabotaged . | . . . . . . . . Overloaded Fab Kills . | . . . . . . . . Hacking | -11 -10 -10 -10 -9 -8 -7 -7 --------- Run | Yrd Mat Min Exi Min Mat Fac Gar Machines Accessed 6 | . 3 . . . 1 2 . Terminals 4 | . 3 . . . . 1 . Fabricators . | . . . . . . . . Repair Stations . | . . . . . . . . Recycling Units . | . . . . . . . . Scanalyzers 1 | . . . . . 1 . . Garrison Access 1 | . . . . . . 1 . Total Hacks 16 | . 10 . . . 1 5 . Successful 7 | . 4 . . . . 3 . Failed 9 | . 6 . . . 1 2 . Catastrophic . | . . . . . . . . Database Lockouts . | . . . . . . . . Manual 7 | . 7 . . . . . . Terminals 14 | . 10 . . . . 4 . Fabricators . | . . . . . . . . Repair Stations . | . . . . . . . . Recycling Units . | . . . . . . . . Scanalyzers 1 | . . . . . 1 . . Garrison Access 1 | . . . . . . 1 . Terminal Hacks 5 | . 3 . . . . 2 . Terminal Index 1 | . 1 . . . . . . Alert Level 1 | . 1 . . . . . . Locate Traps 1 | . . . . . . 1 . Dispatch Records 1 | . . . . . . 1 . Recall Investigation 1 | . 1 . . . . . . Fabricator Hacks . | . . . . . . . . Repair Station Hacks . | . . . . . . . . Recycling Unit Hacks . | . . . . . . . . Scanalyzer . | . . . . . . . . Garrison Access Hacks 1 | . . . . . . 1 . Unlock Access 1 | . . . . . . 1 . Unauthorized Hacks 1 | . 1 . . . . . . Terminals 1 | . 1 . . . . . . Botnet 1 | . 1 . . . . . . Fabricators . | . . . . . . . . Repair Stations . | . . . . . . . . Recycling Units . | . . . . . . . . Scanalyzers . | . . . . . . . . Garrison Access . | . . . . . . . . Data Cores Recovered . | . . . . . . . . Used . | . . . . . . . . Hacking Detections 3 | . 2 . . . . 1 . Full Trace Events 2 | . 1 . . . . 1 . Feedback Events . | . . . . . . . . Feedback Blocked . | . . . . . . . . Robot Schematics Acquired . | . . . . . . . . Robots Built . | . . . . . . . . Authchips . | . . . . . . . . Time . | . . . . . . . . Total Robot Build Rating . | . . . . . . . . Part Schematics Acquired . | . . . . . . . . Parts Built . | . . . . . . . . Authchips . | . . . . . . . . Time . | . . . . . . . . Total Part Build Rating . | . . . . . . . . Parts Repaired . | . . . . . . . . Time . | . . . . . . . . Parts Recycled . | . . . . . . . . Recycled Matter . | . . . . . . . . Retrieved Matter . | . . . . . . . . Retrieved Components . | . . . . . . . . Parts Scanalyzed . | . . . . . . . . Part Schematics Acquired . | . . . . . . . . Parts Damaged . | . . . . . . . . Bothacking | -11 -10 -10 -10 -9 -8 -7 -7 ------------ Run | Yrd Mat Min Exi Min Mat Fac Gar Used RIF Installer . | . . . . . . . . Robots Hacked . | . . . . . . . . Non-combat . | . . . . . . . . Combat . | . . . . . . . . Robot Hacks Applied . | . . . . . . . . Relay Couplers Released . | . . . . . . . . Fabnet Peak Effective % . | . . . . . . . . Robots Rewired . | . . . . . . . . Allies Hacked . | . . . . . . . . Hacks Repelled . | . . . . . . . . Allies | -11 -10 -10 -10 -9 -8 -7 -7 -------- Run | Yrd Mat Min Exi Min Mat Fac Gar Total Allies 1 | . . 1 . . . . . Largest Group 1 | . . 1 1 1 1 . . Highest-Rated Group 31 | . . 31 31 31 31 . . Highest-Rated Ally 31 | . . 31 31 31 31 . . Total Orders . | . . . . . . . . Ally Attacks 27 | . . . . 6 21 . . Total Damage 395 | . . . . 121 274 . . Kills 5 | . . . . 1 4 . . Allies Corrupted . | . . . . . . . . Allies Melted . | . . . . . . . . Intel | -11 -10 -10 -10 -9 -8 -7 -7 ------- Run | Yrd Mat Min Exi Min Mat Fac Gar Active Infowar (turns) . | . . . . . . . . Robot Analysis Total . | . . . . . . . . Derelict Logs Recovered . | . . . . . . . . Drone Launches . | . . . . . . . . Drone Recoveries . | . . . . . . . . Exploration | -11 -10 -10 -10 -9 -8 -7 -7 ------------- Run | Yrd Mat Min Exi Min Mat Fac Gar Turns Passed 2471 | 134 473 40 39 205 832 319 429 Spaces Moved 1551 | 123 328 23 32 155 442 232 216 Core 2 | 2 . . . . . . . Treads . | . . . . . . . . Legs 1332 | 53 328 23 32 155 442 232 67 Wheels 68 | 68 . . . . . . . Hover . | . . . . . . . . Flight 149 | . . . . . . . 149 Fastest Speed 17 | 50 120 120 120 120 120 120 17 Average Speed 112 | 96 120 120 120 120 120 120 78 Slowest Speed 525 | 120 120 120 120 120 190 120 525 Overloaded Moves 7 | . . . . . . . 7 Propulsion Burnouts 1 | . . . . . . . 1 Robots Hopped . | . . . . . . . . Potential Cave-ins . | . . . . . . . . Cave-ins Triggered . | . . . . . . . . Exploration Rate (%) 21 | 6 36 5 8 47 31 6 35 Regions Visited 7 Branch Regions 3 Pre-discovered Areas . | . . . . . . . . Known Exits Taken 2 | . . . . . 1 1 . Unknown Exits Taken 5 | 1 1 1 1 1 . . . Scrap Searched . | . . . . . . . . Spaces Dug . | . . . . . . . . Terrain Destroyed . | . . . . . . . . Melee . | . . . . . . . . Projectile . | . . . . . . . . AOE . | . . . . . . . . Terrain Rammed . | . . . . . . . . Walls Destroyed . | . . . . . . . . Machines Disabled . | . . . . . . . . Actions | -11 -10 -10 -10 -9 -8 -7 -7 --------- Run | Yrd Mat Min Exi Min Mat Fac Gar Total 2113 | 137 396 35 33 164 653 261 434 Wait 335 | . 47 13 . 1 131 17 126 Move 1544 | 122 327 22 31 154 441 231 216 Hop . | . . . . . . . . Pick Up 18 | 6 6 . 1 1 4 . . Fast Attach 23 | 4 . . . . 10 1 8 Attach 22 | 3 4 . . . 2 . 13 Detach 18 | . 3 . . . 3 . 12 Swap 17 | . . . . 2 12 3 . Drop 25 | 2 2 . 1 1 5 3 11 Fire 86 | . 7 . . 5 44 6 24 Melee 6 | . . . . . . . 6 Ram . | . . . . . . . . Kick 1 | . . . . . 1 . . Crush . | . . . . . . . . Escape Stasis 18 | . . . . . . . 18 Rewire . | . . . . . . . . Trap . | . . . . . . . . Miscellaneous . | . . . . . . . . Route ------- -11/Scrapyard -10/Materials -10/Mines -10/Exiles -9/Mines -8/Materials -7/Factory -7/Garrison History --------- Turn | Location | Event 19 | -11/Scrapyard | Discovered new exit (range 15) 135 | -11/Scrapyard | Entered Materials 309 | -10/Materials | Build established: Mutant 600 | -10/Materials | Discovered new exit (range 7) 608 | -10/Materials | Entered Mines 609 | -10/Mines | Met a Derelict testing a Signal Generator 643 | -10/Mines | Deemed a non-threat by the Exiles lab entrance 643 | -10/Mines | Discovered new exit (range 5) 648 | -10/Mines | Entered Exiles 648 | -10/Exiles | Accompanied by 1 ally 671 | -10/Exiles | Discovered new exit (range 14) 687 | -10/Exiles | Entered Mines 687 | -9/Mines | Accompanied by 1 ally 877 | -9/Mines | Discovered new exit (range 13) 892 | -9/Mines | Entered Materials 892 | -8/Materials | Accompanied by 1 ally 892 | -8/Materials | Evolved 4 slots: Propulsion x2, Utility x2 1526 | -8/Materials | Build established: Scavenger-Mutant 1669 | -8/Materials | Discovered new exit (range 4) 1672 | -8/Materials | Identified exit to Factory 1724 | -8/Materials | Entered Factory 1724 | -7/Factory | Evolved 2 slots: Propulsion x1, Utility x1 2042 | -7/Factory | Identified exit to Garrison 2043 | -7/Factory | Entered Garrison 2118 | -7/Garrison | Triggered checkpoint 2377 | -7/Garrison | Core integrity fell below 50% 2415 | -7/Garrison | Lost 8 parts (1p7n) 2420 | -7/Garrison | Core integrity fell below 20% 2472 | -7/Garrison | Destroyed by S-27 Virus with Autogun Last Messages --------------- Sneak attack on C-30 ARC. C-30 ARC Arm. Wheel severed. C-30 ARC bursts open, deploying its payload. S-27 Virus unfolds itself. S-27 Virus destroyed. Acquired 24 matter. S-27 Virus Lgt. Nuclear Core severed. VTOL Module destroyed. Surge Thruster destroyed. Surge Thruster burned out. Dropped Blade Saw. Surge Thruster destroyed. S-27 Virus destroyed. Surge Thruster destroyed. Lgt. Angular Momentum Engine destroyed. Aluminum Leg destroyed. Carbon-fiber Leg destroyed. VTOL Module destroyed. Sml. Storage Unit destroyed. S-27 Virus destroyed. Map ----- +----------------------------------------------------+ | | | ?????????????????????????????????????????????????? | | ?????????????????????????????????????????????????? | | ?????????????????????????????????????????????????? | | ?????????????????????????????????????????????????? | | ?????????????????????????????????????????????????? | | ?????????????????????????????????????????????????? | | ?????????????????????????????????????????????????? | | ?????????????????????????????????????????????????? | | ?????????????????????????????????????????????????? | | ?????????????????????????????????????????????????? | | ?????????????????????????????????????????????????? | | ?????????????????????????????????????????????????? | | ?????????????????????????????????????????????????? | | ?????????????????????????????????????????????????? | | ?????????????????????????????????????????????????? | | ?????????????????????????????????????????????????? | | ?????????????????????????????????????????????????? | | ?????????????????????????????????????????????????? | | ?????????????????????????????????????????????????? | | ?????????????????????????????????????????????????? | | ?????????????????????????????????????????????????? | | ???????? #### #################?????????????????? | | ??????? #?????????????????? | | ??????? %%s #?????????????????? | | ??????? @=/ #?????????????????? | | ??????????????############## #?????????????????? | | ???????????????????????????# #?????????????????? | | ???????????????????????????# #?????????????????? | | ???????????????????????????# #?????????????????? | | ???????????????????????????# #?????????????????? | | ???????????????????????????# #?????????????????? | | ???????????????????????????# #?????????????????? | | ???????????????????????????# [#?????????????????? | | ???????????????????????????# = ############??????? | | ???????????????????????????# *=+% #??????? | | ???????????????????????????# +* #??????? | | ???????????????????????????#^ ### ##### #??????? | | ???????????????????????????# #???#?????????????? | | ???????????????????????????# #?????????????????? | | ???????????????????????????# #?????????????????? | | ???????????????????????????# #?????????????????? | | ???????????????????????????# #?????????????????? | | ???????????????????????????# #############""""## | | ???????????????????????????# | | ???????????????????????????# | | ???????????????????????????# ^ | | ???????????????????????????############ ## ## | | ??????????????????????????????????????# ## ## | | ??????????????????????????????????????" | +----------------------------------------------------+ Best States ------------- Heat Dissipation 48 Energy Generation 18 Energy Capacity 250 Matter Stores 323 Matter Capacity 450 Sight Range 16 Terrain Scan Density 110 Evasion (%) 65 Item Schematics ----------------- None Robot Schematics ------------------ None Fabricated ------------ Nothing Repaired ---------- Nothing Alien Tech Used ----------------- None Achievements -------------- None Challenges ------------ None Game ------ Seed SingularitySpliceChainsword Manual? 0 Play Time 00:25:12 Cumulative 5.6 hours Start 2025.09.21 @ 13:34:32 End 2025.09.21 @ 18:01:00 Sessions 3 Manual Loads 0 Difficulty Rogue Special Mode None Game No. 15 Rogue 1 Adventurer 14 Explorer 0 Win Type - Total 0 Types 0/0/0/0/0/0/0/0/0/0 Lore% 4 Gallery% 11 Achievement% 18 Wizard Run 0 Options --------- Layout 1 ASCII 0 Keyboard 1 Movement Numpad Keybinds 0 Fullscreen 1 Font 24/Smallcaps Map View 50x35 Zoom Use 0% Tactical HUD 0 Map Filters NONE Filters NONE Steam 0 RUN: 07fe8536-99b8-407b-9a3b-5e60614cc293